fUST/lending_fUST_20240120
["ID","MTS","AMOUNT","RATE_DAILY","PERIOD"]
[312261725,1705721440120,-1233.13267775,0.00029779,2]
[312261726,1705721440129,-154.86062544,0.00029779,2]
[312261727,1705721440138,-300.0,0.0002978,2]
[312261728,1705721440147,-2083.53906819,0.0002978,2]
[312261729,1705721440156,-305.59076867,0.0002978,2]
[312261730,1705721440165,-763.70587335,0.0002978,2]
[312261732,1705721440175,-3216.27669923,0.0002978,2]
[312261734,1705721440183,-261.47401535,0.0002978,2]
[312261736,1705721440192,-154.76784823,0.0002978,2]
[312261738,1705721440202,-1825.35938733,0.0002978,2]
[312261740,1705721440211,-154.76784823,0.0002978,2]
[312261741,1705721440220,-283.12887752,0.0003,3]
[312261743,1705721440230,-154.76784823,0.0003,2]
[312261745,1705721440241,-195.24830444,0.0003,4]
[312261747,1705721440250,-682.57522362,0.0003,3]
[312261748,1705721440259,-1177.07361684,0.0003,4]
[312261749,1705721440268,-465.0881123,0.0003,2]
[312261750,1705721440278,-200.37400988,0.0003,2]
[312261752,1705721440287,-604.36538015,0.00030058,2]
[312261754,1705721440296,-500.0,0.00030136,2]
[312261756,1705721440304,-401.4689539,0.00030137,2]
[312261758,1705721440314,-348.9326312,0.00030137,2]
[312261760,1705721440323,-157.453963,0.00030137,2]
[312261762,1705721440332,-162.9876872,0.00030137,2]
[312261764,1705721440340,-509.36700614,0.00030273,2]
[312261766,1705721440349,-620.00329869,0.00030561,2]
[312261768,1705721440358,-275.07,0.0003076,30]
[312261770,1705721440367,-325.0,0.0003077,30]
[312261772,1705721440376,-569.0,0.0003077,30]
[312261774,1705721440385,-325.0,0.0003078,30]
[312261776,1705721440394,-569.0,0.0003078,30]
[312261778,1705721440402,-325.0,0.0003079,30]
[312261780,1705721440411,-569.0,0.0003079,30]
[312261782,1705721440421,-200.0,0.000308,4]
[312261784,1705721440430,-3000.0,0.000309,7]
[312261786,1705721440439,-157.453963,0.00031288,2]
[312261788,1705721440448,-200.0,0.00031368,15]
[312261790,1705721440457,-200.0,0.00031368,15]
[312261792,1705721440467,-200.0,0.00031368,15]
[312261794,1705721440480,-200.0,0.00031368,15]
[312261797,1705721440495,-200.0,0.00031368,15]
[312261799,1705721440509,-200.0,0.00031368,15]
[312261802,1705721440524,-797.94397896,0.0003144,2]
[312261804,1705721440536,-245.111986,0.000315,4]
[312261807,1705721440550,-1000.0,0.00031562,2]
[312261809,1705721440563,-2891.47244817,0.00031562,2]
[312261811,1705721440576,-2891.47244817,0.00031562,2]
[312261814,1705721440591,-2891.47244817,0.00031562,2]
[312261816,1705721440605,-2891.47244817,0.00031562,2]
[312261819,1705721440618,-2891.47244817,0.00031562,2]
[312261821,1705721440628,-2891.47244817,0.00031562,2]
[312261823,1705721440641,-2891.47244817,0.00031562,2]
[312261826,1705721440653,-2891.47244817,0.00031562,2]
[312261828,1705721440666,-2891.47244817,0.00031562,2]
[312261830,1705721440678,-2891.47244817,0.00031562,2]
[312261833,1705721440691,-327.89389687,0.0003158,4]
[312261835,1705721440703,-521.75377805,0.0003159,4]
[312261836,1705721440714,-1990.91655753,0.00031592,4]
[312261837,1705721440730,-8816.32781217,0.00031592,2]
[312261838,1705721440745,-25302.45830074,0.00031593,4]
[312261839,1705721440758,-6664.83248434,0.00031593,4]
[312261840,1705721440772,-20947.46745676,0.00031593,2]
[312261841,1705721440784,-300.74641605,0.00031593,4]
[312261842,1705721440800,-400.47371877,0.00031593,4]
[312261843,1705721440813,-383.05522849,0.00031593,4]
[312261844,1705721440827,-48356.8069719,0.00031594,2]
[312261845,1705721440842,-2698.73704304,0.00031677,4]
[312261846,1705721440857,-5000.0,0.00031862,7]
[312261847,1705721440871,-1000.0,0.00031862,7]
[312261848,1705721440883,-1000.0,0.00031862,7]
[312261850,1705721440894,-5000.0,0.00031925,7]
[312261852,1705721440904,-5000.0,0.00031925,7]
[312261854,1705721440916,-5000.0,0.00031925,7]
[312261857,1705721440929,-5000.0,0.00031925,7]
[312261859,1705721440941,-5000.0,0.00031925,7]
[312261861,1705721440954,-5000.0,0.00031925,7]
[312261863,1705721440966,-5000.0,0.00031925,7]
[312261865,1705721440977,-1000.0,0.00031925,7]
[312261868,1705721440988,-5000.0,0.00031925,7]
[312261870,1705721440999,-5000.0,0.00031925,7]
[312261872,1705721441010,-5000.0,0.00031925,7]
[312261874,1705721441023,-5000.0,0.00031925,7]
[312261877,1705721441038,-5000.0,0.00031925,7]
[312261879,1705721441050,-1000.0,0.00031925,7]
[312261881,1705721441062,-1000.0,0.00031925,7]
[312261883,1705721441074,-1000.0,0.00031925,7]
[312261886,1705721441085,-1000.0,0.00031925,7]
[312261887,1705721441098,-1000.0,0.00031925,7]
[312261890,1705721441110,-1000.0,0.00031925,7]
[312261892,1705721441121,-604.36538015,0.0003195,2]
[312261894,1705721441133,-163.56589425,0.00031997,4]
[312261896,1705721441144,-175.04813234,0.00031997,4]
[312261898,1705721441155,-155.30050826,0.00031997,4]
[312261901,1705721441167,-155.25851462,0.00031998,4]
[312261903,1705721441178,-1245.18485934,0.00031998,4]
[312261905,1705721441190,-311.22711175,0.00031998,4]
[312261907,1705721441202,-45000.0,0.00031999,4]
[312261909,1705721441213,-154.86062544,0.00032,4]
[312261910,1705721441225,-319.08679849,0.00032,4]
[312261911,1705721441236,-150.0,0.00032,4]
[312261912,1705721441248,-1500.0,0.00032,2]
[312261913,1705721441259,-1986.81,0.00032007,2]
[312261914,1705721441271,-151.0,0.00032008,2]
[312261915,1705721441285,-478.922476,0.00032008,2]
[312261916,1705721441297,-478.922476,0.00032008,2]
[312261917,1705721441308,-7875.511004,0.00032008,2]
[312261918,1705721441321,-7875.511004,0.00032008,2]
[312261920,1705721441333,-2118.937775,0.00032008,2]
[312261922,1705721441344,-2118.937775,0.00032008,2]
[312261924,1705721441355,-151.0,0.00032008,2]
[312261927,1705721441366,-50000.0,0.00032008,3]
[312261929,1705721441377,-50000.0,0.00032074,4]
[312261931,1705721441390,-620.00016494,0.00032089,2]
[312261933,1705721441401,-153.381924,0.00032148,2]
[312261935,1705721441412,-5000.0,0.00032199,7]
[312261937,1705721441424,-10281.56426936,0.00032199,3]
[312261940,1705721441435,-5000.0,0.00032199,7]
[312261941,1705721441446,-10741.76041948,0.00032226,3]
[312261944,1705721441458,-50000.0,0.00032271,3]
[312261946,1705721441469,-5000.0,0.00032272,7]
[312261948,1705721441481,-151.0,0.00032272,2]
[312261950,1705721441492,-151.0,0.00032272,2]
[312261952,1705721441504,-2118.937775,0.00032299,2]
[312261954,1705721441515,-2118.937775,0.00032299,2]
[312261957,1705721441526,-5606.77866039,0.00032299,3]
[312261959,1705721441541,-5000.0,0.00032299,7]
[312261961,1705721441553,-5000.0,0.00032299,7]
[312261963,1705721441563,-15950.51892402,0.00032299,3]
[312261965,1705721441576,-5000.0,0.00032415,7]
[312261967,1705721441587,-20229.19382927,0.00032415,3]
[312261970,1705721441605,-5928.62101037,0.00032415,3]
[312261972,1705721441616,-4274.22851251,0.00032415,7]
[312261977,1705721441653,-625.9,0.00032415,7]
[312261979,1705721441668,-99.87148749,0.00032415,7]
[312261981,1705721441679,-151.0,0.00032415,2]
[312261983,1705721441690,-229.60569823,0.00032415,2]
[312262903,1705722285069,763.24520182,0.0001609,2]
[312262904,1705722322986,312.02656699,0.0001609,2]
[312262905,1705722339131,312.02656699,0.0001609,2]
[312262906,1705722361006,312.02656699,0.0001609,2]
[312262907,1705722377008,312.02656699,0.0001609,2]
[312262908,1705722397011,312.02656699,0.0001609,2]
[312262909,1705722409086,-199.18550125,0.00017688,2]
[312262910,1705722409108,-113.3225855,0.00017689,2]
[312262911,1705722413023,312.02656699,0.0001609,2]
[312262912,1705722431017,312.02656699,0.0001609,2]
[312262913,1705722447014,312.02656699,0.0001609,2]
[312262914,1705722471029,454.20893186,0.0001609,2]
[312262918,1705722519043,154.73694719,0.0001609,2]
[312262976,1705722632475,-1266.38115634,0.00017473,2]
[312262979,1705722632485,-191.35107696,0.00017473,2]
[312262980,1705722632494,-154.73694719,0.00017474,3]
[312262982,1705722632503,-2033.84808518,0.00017474,2]
[312262984,1705722632512,-154.73694719,0.00017474,2]
[312262986,1705722632521,-1917.07612398,0.00017474,2]
[312262989,1705722632532,-1112.20333683,0.00017474,2]
[312263413,1705722638442,-18898.32158241,0.00017473,2]
[312263416,1705722638452,-17838.6972087,0.00017474,2]
[312263417,1705722638461,-154.73694719,0.00017475,2]
[312263419,1705722638470,-175.16804152,0.00017475,2]
[312263421,1705722638479,-20895.55414875,0.00017475,2]
[312263423,1705722638488,-164.6047724,0.00017476,2]
[312263425,1705722638497,-154.73694719,0.00017476,2]
[312263427,1705722638507,-5181.4298309,0.00017476,2]
[312263429,1705722638516,-1438.69728082,0.00017477,2]
[312263431,1705722638525,-7957.69581218,0.00017478,2]
[312263433,1705722638534,-1471.37644364,0.00017479,2]
[312263435,1705722638544,-160.57961353,0.00017482,2]
[312263437,1705722638553,-160.57961352,0.00017483,2]
[312263439,1705722638562,-81184.25616528,0.00017577,2]
[312263441,1705722638571,-21679.52592389,0.00017578,2]
[312263443,1705722638580,-152.09509367,0.00017588,2]
[312263445,1705722638589,-166.49194019,0.0001768,2]
[312263447,1705722638598,-19846.52895814,0.0001768,2]
[312263449,1705722638607,-201.28821752,0.00017687,2]
[312263451,1705722638618,-185.3441265,0.00017772,2]
[312263453,1705722638627,-1609.56871004,0.0001787,2]
[312263455,1705722638636,-493.06996521,0.0001787,2]
[312263457,1705722638645,-286.23049881,0.00017873,2]
[312263459,1705722638654,-259.08616376,0.00017878,2]
[312263461,1705722638663,-286.70817143,0.00017878,2]
[312263463,1705722638672,-357.25188437,0.00017878,2]
[312263465,1705722638681,-166.49400102,0.00017878,2]
[312263467,1705722638690,-360.64236185,0.00017878,2]
[312263469,1705722638700,-324.22894284,0.00017878,2]
[312263471,1705722638709,-156.35727794,0.00017878,2]
[312263473,1705722638718,-227.05797875,0.00017878,2]
[312263475,1705722638727,-219.3712843,0.00017878,2]
[312263477,1705722638736,-2717.41472124,0.00017878,2]
[312263479,1705722638746,-267.14894128,0.00017878,2]
[312263481,1705722638755,-154.86062544,0.00017878,2]
[312263483,1705722638764,-226.4771422,0.00017878,2]
[312263485,1705722638773,-260.66534834,0.00017878,2]
[312263487,1705722638782,-24900.0,0.00017882,2]
[312263489,1705722638791,-10531.78529971,0.00017898,2]
[312263491,1705722638800,-604.36538016,0.00018662,2]
[312263493,1705722638809,-200.0,0.00018762,2]
[312263495,1705722638819,-742.58790071,0.00018878,2]
[312263497,1705722638828,-213.27624755,0.00018881,2]
[312263499,1705722638837,-198.20629725,0.00018881,2]
[312263501,1705722638846,-155.08684864,0.00018882,2]
[312263503,1705722638855,-6043.33980046,0.000189,2]
[312263505,1705722638864,-154.86062544,0.00018984,2]
[312263507,1705722638876,-160.84076261,0.00018984,2]
[312263509,1705722638885,-155.35582989,0.00018984,2]
[312263511,1705722638894,-348.20796516,0.00018984,2]
[312263513,1705722638903,-154.86062544,0.00018986,2]
[312263515,1705722638912,-521.75377805,0.00018988,2]
[312263517,1705722638922,-1990.91655753,0.00018988,2]
[312263518,1705722638931,-3628.95524183,0.00018999,2]
[312263521,1705722638942,-1581.76828075,0.00019,2]
[312263522,1705722638951,-170.582091,0.00019178,2]
[312263524,1705722638962,-172.0270558,0.00019178,2]
[312263527,1705722638973,-1114.14548175,0.000195,2]
[312263528,1705722638983,-824.03065617,0.000197,2]
[312263530,1705722638993,-154.75239617,0.0002,2]
[312263532,1705722639003,-849.96832798,0.0002,2]
[312263535,1705722639014,-154.75239617,0.0002,2]
[312263536,1705722639023,-678.35754423,0.0002,2]
[312263538,1705722639033,-1197.48170656,0.0002,2]
[312263540,1705722639043,-154.73694719,0.0002,2]
[312263542,1705722639052,-154.73694719,0.0002,2]
[312263544,1705722639062,-154.73694719,0.0002,2]
[312263546,1705722639071,-583.38359408,0.0002,2]
[312263548,1705722639082,-154.73694719,0.0002,2]
[312263550,1705722639091,-280.0,0.00020638,2]
[312263552,1705722639100,-1764.32790583,0.00021,2]
[312263554,1705722639112,-327.38324213,0.00021,2]
[312263556,1705722639122,-152.0950936,0.00021353,2]
[312263558,1705722639131,-166.666666,0.00021918,2]
[312263560,1705722639140,-6664.83248434,0.00021975,2]
[312263562,1705722639149,-300.74641605,0.00021976,2]
[312263564,1705722639159,-3966.85623058,0.00022,2]
[312263566,1705722639168,-425.80364021,0.00022,2]
[312263568,1705722639176,-604.36538015,0.00022029,2]
[312263570,1705722639185,-166.666666,0.00022431,2]
[312263572,1705722639195,-185.30842625,0.00022512,2]
[312263574,1705722639206,-391.0,0.00022702,7]
[312263576,1705722639215,-166.666666,0.00022944,2]
[312263578,1705722639225,-1570.89243892,0.00023,2]
[312263580,1705722639233,-500.0,0.00023288,2]
[312263582,1705722639242,-500.0,0.00023288,2]
[312263584,1705722639251,-500.0,0.00023288,2]
[312263586,1705722639260,-500.0,0.00023288,2]
[312263588,1705722639269,-215.88845184,0.00023288,2]
[312263590,1705722639278,-500.0,0.00023288,2]
[312263592,1705722639287,-500.0,0.00023288,2]
[312263594,1705722639296,-398.25774799,0.00023288,2]
[312263596,1705722639305,-500.0,0.00023288,2]
[312263597,1705722639314,-500.0,0.00023288,2]
[312263599,1705722639323,-500.0,0.00023288,2]
[312263601,1705722639332,-165.48195097,0.00023288,2]
[312263603,1705722639341,-500.0,0.00023288,2]
[312263605,1705722639350,-500.0,0.00023288,2]
[312263607,1705722639360,-500.0,0.00023288,2]
[312263609,1705722639369,-464.84968044,0.00023288,2]
[312263611,1705722639378,-500.0,0.00023288,2]
[312263612,1705722639387,-270.1902795,0.00023288,2]
[312263614,1705722639396,-500.0,0.00023288,2]
[312263616,1705722639405,-500.0,0.00023288,2]
[312263618,1705722639414,-500.0,0.00023288,2]
[312263620,1705722639423,-500.0,0.00023288,2]
[312263622,1705722639432,-500.0,0.00023288,2]
[312263624,1705722639441,-500.0,0.00023288,2]
[312263626,1705722639450,-500.0,0.00023288,2]
[312263628,1705722639459,-500.0,0.00023288,2]
[312263630,1705722639468,-500.0,0.00023288,2]
[312263632,1705722639477,-500.0,0.00023288,2]
[312263634,1705722639485,-520.27579336,0.00023288,2]
[312263636,1705722639495,-500.0,0.00023288,2]
[312263638,1705722639504,-500.0,0.00023288,2]
[312263640,1705722639513,-500.0,0.00023288,2]
[312263642,1705722639522,-500.0,0.00023288,2]
[312263644,1705722639531,-500.0,0.00023288,2]
[312263645,1705722639540,-500.0,0.00023288,2]
[312263647,1705722639549,-500.0,0.00023288,2]
[312263649,1705722639558,-500.0,0.00023288,2]
[312263651,1705722639567,-500.0,0.00023288,2]
[312263653,1705722639576,-500.0,0.00023288,2]
[312263655,1705722639585,-500.0,0.00023288,2]
[312263657,1705722639594,-323.43159092,0.00023288,2]
[312263659,1705722639603,-166.666666,0.00023456,2]
[312263661,1705722639613,-6043.33980046,0.000239,2]
[312263663,1705722639623,-166.666666,0.00023969,2]
[312263665,1705722639632,-4012.5594856,0.00024,2]
[312263667,1705722639641,-166.666666,0.00024482,2]
[312263669,1705722639650,-498.11936971,0.0002495,5]
[312263671,1705722639659,-200.0,0.00024972,7]
[312263673,1705722639668,-348.0,0.00024972,7]
[312263675,1705722639677,-155.25851462,0.00024997,2]
[312263677,1705722639685,-4721.06450288,0.00025,2]
[312263679,1705722639695,-1045.90652664,0.00025,2]
[312263681,1705722639704,-155.5855391,0.00025,2]
[312263683,1705722639713,-193.30440341,0.00025,2]
[312263684,1705722639722,-155.16885659,0.00025,2]
[312263686,1705722639731,-152.0950936,0.00025117,2]
[312263688,1705722639743,-604.36538015,0.00025396,2]
[312263690,1705722639753,-311.22711175,0.00025787,2]
[312263692,1705722639762,-281.4514986,0.00025788,2]
[312263694,1705722639771,-3941.84415328,0.00026,2]
[312263696,1705722639781,-646.38625071,0.00026612,2]
[312263698,1705722639790,-260.03395017,0.00027,2]
[312263700,1705722639799,-296.91938574,0.00027391,2]
[312263702,1705722639808,-1245.18485934,0.00027392,2]
[312263704,1705722639817,-155.30050826,0.00027392,2]
[312263706,1705722639826,-1768.74706888,0.00027394,2]
[312263708,1705722639836,-12650.20816146,0.00027395,2]
[312263710,1705722639845,-246.90614662,0.00027396,2]
[312263712,1705722639855,-6221.42,0.00027397,3]
[312263714,1705722639864,-200.0,0.00027469,15]
[312263716,1705722639875,-200.0,0.00027469,15]
[312263718,1705722639885,-368.0,0.00027469,15]
[312263720,1705722639894,-621.31931254,0.00027942,2]
[312263722,1705722639903,-154.75239617,0.00028,10]
[312263724,1705722639912,-291.58293255,0.00028,2]
[312263726,1705722639921,-199.0990555,0.00028493,2]
[312263728,1705722639929,-12423.32320464,0.00028598,2]
[312263730,1705722639939,-12553.0,0.000286,2]
[312263732,1705722639948,-604.36538015,0.00028762,2]
[312263734,1705722639957,-1164.81326935,0.000288,3]
[312263736,1705722639966,-152.0950936,0.00028882,4]
[312263738,1705722639976,-1879.95128807,0.00029,2]
[312263740,1705722639985,-154.75239617,0.00029,2]
[312263742,1705722639995,-1000.0,0.00029213,14]
[312263744,1705722640003,-840.32731624,0.00029213,14]
[312263746,1705722640014,-620.06596563,0.00029339,2]
[312263748,1705722640024,-198.68,0.00029399,2]
[312263750,1705722640033,-198.68,0.00029399,2]
[312263751,1705722640043,-198.68,0.00029399,2]
[312263753,1705722640052,-198.68,0.00029399,2]
[312263755,1705722640061,-198.68,0.00029399,2]
[312263757,1705722640070,-198.68,0.00029399,2]
[312263759,1705722640079,-198.68,0.00029399,2]
[312263761,1705722640089,-6159.01,0.00029399,2]
[312263763,1705722640099,-3079.5,0.00029399,2]
[312263765,1705722640109,-421.97185662,0.00029399,2]
[312263767,1705722640121,-614.9050508,0.00029399,4]
[312263769,1705722640131,-500.0,0.00029399,4]
[312263771,1705722640140,-500.0,0.00029399,4]
[312263773,1705722640150,-365.26595939,0.00029399,4]
[312263775,1705722640160,-156.14531815,0.00029399,4]
[312263777,1705722640169,-213.35341648,0.00029399,4]
[312263779,1705722640178,-276000.0,0.000294,2]
[312263781,1705722640187,-22020.7306825,0.000295,30]
[312263783,1705722640197,-686.68945178,0.0003,3]
[312263785,1705722640208,-465.0881123,0.0003,2]
[312263787,1705722640217,-1725.0,0.0003,2]
[312263789,1705722640225,-500.0,0.00030136,2]
[312263791,1705722640234,-401.4689539,0.00030137,2]
[312263793,1705722640243,-348.9326312,0.00030137,2]
[312263795,1705722640252,-199.0990555,0.00030137,2]
[312263797,1705722640260,-199.0990555,0.00030137,2]
[312263798,1705722640269,-199.0990555,0.00030137,2]
[312263800,1705722640278,-199.0990555,0.00030137,2]
[312263802,1705722640289,-199.0990555,0.00030137,2]
[312263804,1705722640298,-157.915106,0.00030137,2]
[312263806,1705722640308,-200.0,0.00030216,15]
[312263808,1705722640317,-200.0,0.00030216,15]
[312263810,1705722640326,-200.0,0.00030216,15]
[312263812,1705722640335,-200.0,0.00030216,15]
[312263815,1705722640344,-275.0,0.00030216,15]
[312263819,1705722640356,-509.36700614,0.00030273,2]
[312263820,1705722640365,-325.0,0.00030655,30]
[312263822,1705722640375,-569.0,0.00030655,30]
[312263825,1705722640384,-325.0,0.00030665,30]
[312263833,1705722640394,-569.0,0.00030665,30]
[312263834,1705722640510,-325.0,0.00030675,30]
[312263835,1705722640519,-569.0,0.00030675,30]
[312263836,1705722640529,-150.5,0.00030685,30]
[312263837,1705722640538,-150.5,0.00030695,30]
[312263838,1705722640547,-150.5,0.00030705,30]
[312263839,1705722640557,-12249.29617136,0.00030794,5]
[312263840,1705722640566,-3000.0,0.000309,7]
[312263841,1705722640575,-238.14143998,0.00031,3]
[312263842,1705722640584,-200.0,0.00031,4]
[312263843,1705722640593,-157.915106,0.00031183,2]
[312263844,1705722640602,-150.0,0.00031236,2]
[312263845,1705722640611,-620.00345539,0.00031734,2]
[312263846,1705722640622,-5000.0,0.00031792,7]
[312263847,1705722640631,-5000.0,0.00031792,7]
[312263848,1705722640640,-90935.82667342,0.00031996,3]
[312263849,1705722640649,-154.75239617,0.00032,4]
[312263850,1705722640659,-319.15753811,0.00032,4]
[312263852,1705722640668,-1500.0,0.00032,2]
[312263854,1705722640677,-50000.0,0.00032058,3]
[312263856,1705722640686,-25446.14660722,0.00032078,4]
[312263858,1705722640696,-50000.0,0.00032119,3]
[312263860,1705722640705,-2891.47244817,0.00032119,2]
[312263862,1705722640713,-2891.47244817,0.00032119,2]
[312263864,1705722640723,-2891.47244817,0.00032119,2]
[312263866,1705722640732,-2891.47244817,0.00032119,2]
[312263868,1705722640741,-2891.47244817,0.00032119,2]
[312263870,1705722640751,-2891.47244817,0.00032119,2]
[312263872,1705722640760,-2891.47244817,0.00032119,2]
[312263874,1705722640769,-2891.47244817,0.00032119,2]
[312263876,1705722640778,-2891.47244817,0.00032119,2]
[312263878,1705722640787,-2891.47244817,0.00032119,2]
[312263880,1705722640796,-604.36538015,0.00032129,2]
[312263882,1705722640805,-3079.51,0.00032139,2]
[312263883,1705722640814,-8428.54906615,0.0003214,4]
[312263885,1705722640823,-38867.17387825,0.0003214,4]
[312263887,1705722640833,-1000.0,0.00032178,2]
[312263889,1705722640842,-6947.81932959,0.00032183,4]
[312263891,1705722640851,-157.915106,0.00032229,2]
[312263893,1705722640860,-797.94397896,0.00032319,2]
[312263895,1705722640871,-245.111986,0.000324,5]
[312263897,1705722640880,-212.96463705,0.00032413,2]
[312263899,1705722640889,-543.29466566,0.00032414,4]
[312263901,1705722640899,-1177.07361684,0.00032415,4]
[312263903,1705722640908,-3538.62277696,0.00032415,4]
[312263906,1705722640923,-782.67029302,0.00032415,4]
[312263908,1705722640932,-410.58260666,0.00032415,4]
[312263910,1705722640942,-283.12887752,0.00032415,3]
[312263912,1705722640951,-1026.09234423,0.00032415,2]
[312263914,1705722640961,-2799.38070582,0.00032415,4]
[312263916,1705722640970,-432.01594904,0.00032415,4]
[312263918,1705722640979,-154.75239617,0.00032415,2]
[312263920,1705722640989,-195.24830444,0.00032415,4]
[312263922,1705722640998,-300.0,0.00032415,4]
[312263924,1705722641007,-2452.49821714,0.00032415,2]
[312263926,1705722641017,-200.37400988,0.00032415,2]
[312263928,1705722641027,-154.73694719,0.00032415,4]
[312263930,1705722641036,-154.73694719,0.00032415,4]
[312263931,1705722641045,-856.63192458,0.00032475,7]
[312263934,1705722641058,-4143.36807542,0.00032475,7]
[312263936,1705722641068,-1094.47895322,0.000325,20]
[312263938,1705722641077,-152.0950936,0.00032646,6]
[312263940,1705722641086,-250.0,0.00032876,7]
[312263942,1705722641096,-500.0,0.00032876,7]
[312263944,1705722641107,-500.0,0.00032876,7]
[312263946,1705722641119,-500.0,0.00032876,7]
[312263947,1705722641130,-399.28917058,0.00032876,7]
[312263949,1705722641139,-577.64270963,0.00032876,7]
[312263951,1705722641149,-500.0,0.00032876,7]
[312263953,1705722641159,-423.69331099,0.00032876,7]
[312263956,1705722641169,-500.0,0.00032876,7]
[312263958,1705722641183,-500.0,0.00032876,7]
[312263960,1705722641192,-429.5330711,0.00032876,7]
[312263962,1705722641203,-500.0,0.00032876,7]
[312263964,1705722641212,-500.0,0.00032876,7]
[312263966,1705722641221,-223.63726033,0.00032876,7]
[312263968,1705722641230,-515.20684502,0.00032876,7]
[312263970,1705722641238,-500.0,0.00032876,7]
[312263972,1705722641248,-500.0,0.00032876,7]
[312263973,1705722641257,-500.0,0.00032876,7]
[312263975,1705722641266,-500.0,0.00032876,7]
[312263977,1705722641275,-500.0,0.00032876,7]
[312263979,1705722641284,-500.0,0.00032876,7]
[312263981,1705722641294,-500.0,0.00032876,7]
[312263983,1705722641303,-500.0,0.00032876,7]
[312263985,1705722641312,-500.0,0.00032876,7]
[312263987,1705722641321,-500.0,0.00032876,7]
[312263989,1705722641330,-500.0,0.00032876,7]
[312263991,1705722641339,-500.0,0.00032876,7]
[312263993,1705722641348,-500.0,0.00032876,7]
[312263996,1705722641359,-500.0,0.00032876,7]
[312263997,1705722641371,-500.0,0.00032876,7]
[312264000,1705722641382,-6762.26543772,0.00033,4]
[312264001,1705722641391,-1500.0,0.00033,2]
[312264003,1705722641400,-171.0,0.00033,2]
[312264006,1705722641410,-200.0,0.00033238,15]
[312264008,1705722641420,-200.0,0.00033238,15]
[312264010,1705722641430,-200.0,0.00033238,15]
[312264011,1705722641439,-200.0,0.00033238,15]
[312264013,1705722641449,-200.0,0.00033238,15]
[312264015,1705722641458,-200.0,0.00033238,15]
[312264018,1705722641468,-47.08850928,0.00033238,15]
[312264135,1705722642605,-257.91149072,0.00033238,15]
[312264137,1705722642614,-160.0,0.00033254,3]
[312264139,1705722642625,-157.915106,0.00033275,2]
[312264141,1705722642633,-620.00017277,0.00033321,2]
[312264143,1705722642642,-5000.0,0.00033378,2]
[312264145,1705722642651,-160.0,0.00033444,4]
[312264147,1705722642660,-6159.01,0.00033499,2]
[312264149,1705722642669,-9964.10390187,0.000335,8]
[312264446,1705722646749,-4719.8730355,0.000335,8]
[312264448,1705722832052,4578.90096328,0.0001631,2]
[312264449,1705722875990,682.21592478,0.0001631,2]
[312264450,1705722889985,1309.4355562,0.0001631,2]
[312264451,1705722897202,155.290543,0.0001631,2]
[312264452,1705722899589,155.40088398,0.0001631,2]
[312264453,1705722905992,682.21592478,0.0001631,2]
[312264454,1705722923992,682.21592478,0.0001631,2]
[312264455,1705722926698,567.23901564,0.0001631,2]
[312264456,1705722943999,682.21592478,0.0001631,2]
[312264457,1705722963995,682.21592478,0.0001631,2]
[312264458,1705722979999,682.21592478,0.0001631,2]
[312264459,1705723002152,682.21592478,0.0001631,2]
[312264460,1705723022002,682.21592478,0.0001631,2]
[312264461,1705723038010,682.21592478,0.0001631,2]
[312264462,1705723058015,682.21592478,0.0001631,2]
[312264463,1705723078012,682.21592478,0.0001631,2]
[312264464,1705723094008,682.21592478,0.0001631,2]
[312264465,1705723112033,682.21592478,0.0001631,2]
[312264466,1705723134018,559.86489236,0.0001631,2]
[312264467,1705723253589,154.73694719,0.0001631,2]
[312264468,1705723265576,290.06258558,0.0001631,2]
[312264469,1705723269250,167.52445348,0.0001631,2]
[312264470,1705723276895,547.46838753,0.0001631,2]
[312264471,1705723281574,-12000.0,0.00016456,2]